fUSD/lending_fUSD_20250221
["ID","MTS","AMOUNT","RATE_DAILY","PERIOD"]
[353917946,1740143433623,-500.0,0.00012972,2]
[353917948,1740143433635,-500.0,0.00012972,2]
[353917950,1740143433648,-500.0,0.00012972,2]
[353917953,1740143433660,-500.0,0.00012972,2]
[353917955,1740143433673,-500.0,0.00012972,2]
[353917958,1740143433690,-500.0,0.00012972,2]
[353917960,1740143433702,-500.0,0.00012972,2]
[353917962,1740143433715,-500.0,0.00012972,2]
[353917965,1740143433729,-500.0,0.00012972,2]
[353917967,1740143433742,-500.0,0.00012972,2]
[353917969,1740143433754,-500.0,0.00012972,2]
[353917972,1740143433768,-500.0,0.00012972,2]
[353917974,1740143433780,-500.0,0.00012972,2]
[353917976,1740143433792,-500.0,0.00012972,2]
[353917979,1740143433805,-500.0,0.00012972,2]
[353917981,1740143433816,-500.0,0.00012972,2]
[353917983,1740143433829,-500.0,0.00012972,2]
[353917985,1740143433841,-500.0,0.00012972,2]
[353917988,1740143433855,-500.0,0.00012972,2]
[353917990,1740143433866,-500.0,0.00012972,2]
[353917993,1740143433878,-500.0,0.00012972,2]
[353917995,1740143433891,-500.0,0.00012972,2]
[353917997,1740143433903,-477.33,0.00012972,2]
[353918000,1740143433916,-500.0,0.00012972,2]
[353918002,1740143433928,-1000.0,0.00012972,2]
[353918004,1740143433940,-1000.0,0.00012972,2]
[353918007,1740143433953,-1000.0,0.00012972,2]
[353918009,1740143433965,-1000.0,0.00012972,2]
[353918011,1740143433977,-1000.0,0.00012972,2]
[353918013,1740143433988,-1000.0,0.00012972,2]
[353918016,1740143434000,-1000.0,0.00012972,2]
[353918018,1740143434012,-1000.0,0.00012972,2]
[353918020,1740143434025,-505.8,0.00012976,2]
[353918023,1740143434037,-432.31286095,0.00013134,2]
[353918025,1740143434049,-165.7944384,0.00013199,2]
[353918027,1740143434061,-3151.84152428,0.00013199,2]
[353918030,1740143434073,-3543.9891,0.00013199,2]
[353918032,1740143434085,-6728.0142,0.000132,2]
[353918034,1740143434098,-350.5545,0.000132,2]
[353918036,1740143434111,-20782.25373911,0.000132,2]
[353918039,1740143434125,-179.32244399,0.000132,2]
[353918041,1740143434137,-1349.4455,0.000132,2]
[353918043,1740143434149,-9098.205,0.000132,2]
[353918046,1740143434161,-160.2548658,0.000132,2]
[353918048,1740143434174,-609.5108194,0.000132,2]
[353918050,1740143434186,-7500.0,0.000132,2]
[353918053,1740143434199,-302.45791344,0.000132,2]
[353918055,1740143434212,-740.71243084,0.00013243,2]
[353918058,1740143434228,-2411.12909341,0.00013243,2]
[353918060,1740143434241,-5701.89180705,0.0001326,2]
[353918064,1740143434268,-7405.10819295,0.0001326,2]
[353918066,1740143434280,-160.82362769,0.00013273,2]
[353918068,1740143434292,-150.83534187,0.00013273,2]
[353918071,1740143434304,-151.83421978,0.00013273,2]
[353918073,1740143434317,-165.79443839,0.00013283,2]
[353918075,1740143434329,-3151.84152425,0.00013288,2]
[353918078,1740143434341,-246.239,0.00013288,2]
[353918080,1740143434354,-1479.392,0.0001329,2]
[353918082,1740143434366,-500.0,0.00013296,2]
[353918085,1740143434378,-500.0,0.00013296,2]
[353918087,1740143434391,-500.0,0.00013296,2]
[353918089,1740143434404,-500.0,0.00013296,2]
[353918092,1740143434416,-500.0,0.00013296,2]
[353918094,1740143434428,-86388.01675083,0.00013298,2]
[353918142,1740143434979,-500.0,0.00013296,2]
[353918144,1740143434988,-500.0,0.00013296,2]
[353918146,1740143434998,-4037.86797222,0.00013298,2]
[353918151,1740143435032,-500.0,0.00013296,2]
[353918153,1740143435041,-500.0,0.00013296,2]
[353918155,1740143435050,-1000.0,0.00013298,2]
[353918157,1740143435061,-6904.89003891,0.00013298,2]
[353918160,1740143435079,-500.0,0.00013296,2]
[353918162,1740143435089,-10808.89985814,0.00013298,2]
[353918361,1740143438377,-578.75100938,0.00011547,2]
[353918362,1740143438389,-4157.71290327,0.00011547,2]
[353918363,1740143438434,-851.70702,0.00011547,2]
[353918364,1740143438445,-636.0,0.00011547,2]
[353918365,1740143438490,-9360.03906735,0.00011547,2]
[353918366,1740143438500,-6792.88465416,0.000132,2]
[353918367,1740143438552,-707.11534584,0.000132,2]
[353918368,1740143438560,-500.0,0.00013296,2]
[353918369,1740143438570,-500.0,0.00013296,2]
[353918370,1740143438579,-500.0,0.00013296,2]
[353918371,1740143438589,-382.17895416,0.00013296,2]
[353918372,1740143438602,-117.82104584,0.00013296,2]
[353918373,1740143438613,-519.52103435,0.00013296,2]
[353918375,1740143438622,-500.0,0.00013296,2]
[353918376,1740143438632,-609.48030291,0.00013298,2]
[353918378,1740143438650,-179052.49077826,0.00013298,2]
[353918400,1740143440599,-2973.21,0.00013298,2]
[353918401,1740143440613,-5441.00249838,0.00013298,2]
[353918402,1740143440624,-4344.94452145,0.00013298,2]
[353918403,1740143440635,-358.24756119,0.00013298,2]
[353918404,1740143440709,-77688.9,0.00013298,2]
[353918405,1740143440722,-68966.08586931,0.00013298,2]
[353918406,1740143440732,-871.41186167,0.00013298,2]
[353918407,1740143440767,-1192.57924413,0.00013298,2]
[353918408,1740143440956,-284.95864806,0.00013298,2]
[353918409,1740143440968,-536.16693002,0.00013298,2]
[353918500,1740143443480,-500.0,0.00013296,2]
[353918502,1740143443490,-176.1999999,0.00013296,2]
[353918504,1740143443502,-214.8578928,0.00013296,2]
[353918506,1740143443514,-500.0,0.00013296,2]
[353918508,1740143443523,-281.69060875,0.00013296,2]
[353918510,1740143443533,-173.35091462,0.00013296,2]
[353918513,1740143443543,-123565.80586754,0.00013298,2]
[353918515,1740143443553,-441.45614,0.00013299,2]
[353918517,1740143443563,-300.0,0.00013299,2]
[353918519,1740143443572,-300.0,0.00013299,2]
[353918520,1740143443582,-300.0,0.00013299,2]
[353918522,1740143443591,-1185.0,0.000133,2]
[353918524,1740143443600,-3010.833224,0.000133,2]
[353918526,1740143443610,-619536.26798422,0.000133,3]
[353918530,1740143443636,-873.04153788,0.000133,3]
[353918532,1740143443647,-276.07196702,0.000133,3]
[353918535,1740143443666,-15867.8225381,0.000133,3]
[353918540,1740143443712,-1129.84499985,0.000133,3]
[353918727,1740143446354,-491.4,0.000132,2]
[353918728,1740143446364,-120.48461223,0.000133,3]
[353918729,1740143446376,-405961.76600669,0.000133,3]
[353918730,1740143446701,-503.01375504,0.000133,3]
[353918731,1740143446712,-2850.0,0.000133,3]
[353918732,1740143446723,-1486.46821,0.000133,3]
[353918734,1740143446735,-2965.29790699,0.000133,3]
[353918736,1740143446746,-575034.55855309,0.000133,3]
[353918739,1740143446757,-88955.91758408,0.000133,3]
[353918741,1740143446769,-150.0,0.000133,2]
[353918743,1740143446779,-2000.0,0.00013316,2]
[353918745,1740143446789,-500.0,0.00013316,2]
[353918748,1740143446798,-200.0,0.00013316,2]
[353918750,1740143446807,-300.0,0.00013323,2]
[353918752,1740143446816,-300.0,0.00013323,2]
[353918754,1740143446826,-300.0,0.00013323,2]
[353918756,1740143446835,-61339.31124547,0.00013324,2]
[353918758,1740143446844,-3151.84152425,0.00013332,2]
[353918760,1740143446854,-165.79443839,0.00013366,2]
[353918762,1740143446863,-500.0,0.00013376,2]
[353918764,1740143446872,-500.0,0.00013376,2]
[353918766,1740143446881,-500.0,0.00013376,2]
[353918768,1740143446890,-500.0,0.00013376,2]
[353918770,1740143446899,-520.0,0.00013376,2]
[353918772,1740143446908,-500.0,0.00013376,2]
[353918774,1740143446917,-500.0,0.00013376,2]
[353918776,1740143446927,-500.0,0.00013376,2]
[353918778,1740143446936,-500.0,0.00013376,2]
[353918780,1740143446945,-500.0,0.00013376,2]
[353918782,1740143446954,-500.0,0.00013376,2]
[353918784,1740143446963,-500.0,0.00013376,2]
[353918786,1740143446972,-500.0,0.00013376,2]
[353918787,1740143446981,-500.0,0.00013376,2]
[353918788,1740143446990,-500.0,0.00013376,2]
[353918789,1740143446999,-500.0,0.00013376,2]
[353918790,1740143447008,-500.0,0.00013376,2]
[353918791,1740143447018,-500.0,0.00013376,2]
[353918792,1740143447027,-500.0,0.00013376,2]
[353918793,1740143447036,-500.0,0.00013376,2]
[353918794,1740143447046,-500.0,0.00013376,2]
[353918795,1740143447056,-500.0,0.00013376,2]
[353918796,1740143447065,-757.0,0.00013376,2]
[353918797,1740143447074,-3151.84152425,0.00013376,2]
[353918798,1740143447083,-367.0,0.000134,2]
[353918799,1740143447092,-748.0,0.000134,2]
[353918800,1740143447102,-500.0,0.00013412,2]
[353918801,1740143447112,-500.0,0.00013412,2]
[353918802,1740143447122,-500.0,0.00013412,2]
[353918803,1740143447132,-500.0,0.00013412,2]
[353918804,1740143447141,-500.0,0.00013412,2]
[353918805,1740143447152,-500.0,0.00013412,2]
[353918806,1740143447161,-500.0,0.00013412,2]
[353918807,1740143447171,-500.0,0.00013412,2]
[353918808,1740143447181,-500.0,0.00013412,2]
[353918809,1740143447190,-500.0,0.00013412,2]
[353918810,1740143447200,-500.0,0.00013412,2]
[353918811,1740143447210,-500.0,0.00013412,2]
[353918812,1740143447220,-500.0,0.00013412,2]
[353918813,1740143447229,-500.0,0.00013412,2]
[353918814,1740143447239,-500.0,0.00013412,2]
[353918815,1740143447248,-500.0,0.00013412,2]
[353918816,1740143447258,-500.0,0.00013412,2]
[353918817,1740143447270,-500.0,0.00013412,2]
[353918818,1740143447280,-500.0,0.00013412,2]
[353918819,1740143447290,-500.0,0.00013412,2]
[353918820,1740143447300,-138.86284839,0.00013412,2]
[353918821,1740143447313,-361.13715161,0.00013412,2]
[353918822,1740143447323,-500.0,0.00013412,2]
[353918823,1740143447333,-500.0,0.00013412,2]
[353918824,1740143447343,-500.0,0.00013412,2]
[353918825,1740143447525,-500.0,0.00013412,2]
[353918826,1740143447535,-500.0,0.00013412,2]
[353918827,1740143447545,-500.0,0.00013412,2]
[353918828,1740143447555,-500.0,0.00013412,2]
[353918829,1740143447564,-500.0,0.00013412,2]
[353918830,1740143447573,-500.0,0.00013412,2]
[353918831,1740143447583,-500.0,0.00013412,2]
[353918832,1740143447593,-500.0,0.00013412,2]
[353918833,1740143447602,-500.0,0.00013412,2]
[353918834,1740143447613,-500.0,0.00013412,2]
[353918835,1740143447622,-500.0,0.00013412,2]
[353918836,1740143447632,-500.0,0.00013412,2]
[353918837,1740143447641,-500.0,0.00013412,2]
[353918838,1740143447652,-500.0,0.00013412,2]
[353918839,1740143447661,-500.0,0.00013412,2]
[353918840,1740143447671,-284.37186766,0.00013413,2]
[353918841,1740143447684,-520.12152532,0.00013413,2]
[353918842,1740143447698,-1440.42786492,0.00013413,2]
[353918843,1740143447707,-3086.1388602,0.00013413,2]
[353918844,1740143447716,-300.0,0.00013413,2]
[353918845,1740143447726,-300.0,0.00013413,2]
[353918846,1740143447735,-500.0,0.00013414,2]
[353918847,1740143447744,-500.0,0.00013414,2]
[353918848,1740143447754,-500.0,0.00013414,2]
[353918849,1740143447764,-500.0,0.00013414,2]
[353918850,1740143447776,-500.0,0.00013414,2]
[353918851,1740143447788,-500.0,0.00013414,2]
[353918852,1740143447797,-500.0,0.00013414,2]
[353918853,1740143447806,-500.0,0.00013414,2]
[353918854,1740143447816,-500.0,0.00013414,2]
[353918855,1740143447825,-500.0,0.00013414,2]
[353918856,1740143447836,-500.0,0.00013414,2]
[353918857,1740143447846,-500.0,0.00013414,2]
[353918858,1740143447856,-500.0,0.00013414,2]
[353918859,1740143447866,-500.0,0.00013414,2]
[353918860,1740143447875,-500.0,0.00013414,2]
[353918861,1740143447885,-500.0,0.00013414,2]
[353918862,1740143447893,-500.0,0.00013414,2]
[353918863,1740143447903,-500.0,0.00013414,2]
[353918864,1740143447912,-500.0,0.00013414,2]
[353918865,1740143447921,-500.0,0.00013414,2]
[353918866,1740143447930,-500.0,0.00013414,2]
[353918867,1740143447938,-500.0,0.00013414,2]
[353918868,1740143447948,-500.0,0.00013414,2]
[353918869,1740143447957,-500.0,0.00013414,2]
[353918870,1740143447967,-500.0,0.00013414,2]
[353918871,1740143447976,-500.0,0.00013414,2]
[353918872,1740143447985,-500.0,0.00013414,2]
[353918873,1740143447996,-500.0,0.00013414,2]
[353918874,1740143448005,-500.0,0.00013414,2]
[353918875,1740143448015,-500.0,0.00013414,2]
[353918876,1740143448023,-500.0,0.00013414,2]
[353918877,1740143448033,-500.0,0.00013414,2]
[353918878,1740143448042,-500.0,0.00013414,2]
[353918879,1740143448052,-500.0,0.00013414,2]
[353918880,1740143448062,-500.0,0.00013414,2]
[353918881,1740143448071,-500.0,0.00013414,2]
[353918882,1740143448080,-500.0,0.00013414,2]
[353918883,1740143448089,-500.0,0.00013414,2]
[353918884,1740143448099,-500.0,0.00013414,2]
[353918885,1740143448110,-500.0,0.00013414,2]
[353918886,1740143448120,-500.0,0.00013414,2]
[353918887,1740143448130,-500.0,0.00013414,2]
[353918888,1740143448139,-500.0,0.00013414,2]
[353918889,1740143448149,-500.0,0.00013414,2]
[353918890,1740143448158,-500.0,0.00013414,2]
[353918891,1740143448168,-500.0,0.00013414,2]
[353918892,1740143448178,-500.0,0.00013414,2]
[353918893,1740143448188,-339.0212211,0.00013414,2]
[353918894,1740143448226,-160.9787789,0.00013414,2]
[353918895,1740143448236,-500.0,0.00013414,2]
[353918896,1740143448246,-500.0,0.00013414,2]
[353918897,1740143448255,-500.0,0.00013414,2]
[353918898,1740143448269,-500.0,0.00013414,2]
[353918899,1740143448279,-500.0,0.00013414,2]
[353918900,1740143448290,-500.0,0.00013414,2]
[353918901,1740143448299,-500.0,0.00013414,2]
[353918902,1740143448309,-500.0,0.00013414,2]
[353918903,1740143448318,-500.0,0.00013414,2]
[353918904,1740143448328,-500.0,0.00013414,2]
[353918905,1740143448337,-500.0,0.00013414,2]
[353918906,1740143448346,-500.0,0.00013414,2]
[353918907,1740143448356,-500.0,0.00013414,2]
[353918908,1740143448366,-500.0,0.00013414,2]
[353918909,1740143448375,-500.0,0.00013414,2]
[353918910,1740143448385,-500.0,0.00013414,2]
[353918911,1740143448395,-500.0,0.00013414,2]
[353918912,1740143448405,-500.0,0.00013414,2]
[353918913,1740143448414,-500.0,0.00013414,2]
[353918914,1740143448424,-500.0,0.00013414,2]
[353918915,1740143448434,-500.0,0.00013414,2]
[353918916,1740143448443,-500.0,0.00013414,2]
[353918917,1740143448453,-500.0,0.00013414,2]
[353918918,1740143448463,-500.0,0.00013414,2]
[353918919,1740143448472,-500.0,0.00013414,2]
[353918920,1740143448482,-500.0,0.00013414,2]
[353918921,1740143448491,-500.0,0.00013414,2]
[353918922,1740143448500,-500.0,0.00013414,2]
[353918923,1740143448509,-500.0,0.00013414,2]
[353918924,1740143448522,-500.0,0.00013414,2]
[353918925,1740143448531,-500.0,0.00013414,2]
[353918926,1740143448540,-500.0,0.00013414,2]
[353918927,1740143448549,-500.0,0.00013414,2]
[353918928,1740143448559,-500.0,0.00013414,2]
[353918929,1740143448569,-500.0,0.00013414,2]
[353918930,1740143448578,-500.0,0.00013414,2]
[353918931,1740143448588,-500.0,0.00013414,2]
[353918932,1740143448597,-500.0,0.00013414,2]
[353918933,1740143448607,-500.0,0.00013414,2]
[353918934,1740143448617,-500.0,0.00013414,2]
[353918935,1740143448627,-500.0,0.00013414,2]
[353918936,1740143448636,-500.0,0.00013414,2]
[353918937,1740143448646,-500.0,0.00013414,2]
[353918938,1740143448655,-500.0,0.00013414,2]
[353918939,1740143448665,-500.0,0.00013414,2]
[353918940,1740143448674,-500.0,0.00013414,2]
[353918941,1740143448686,-892.0,0.00013414,2]
[353918942,1740143448696,-500.0,0.00013414,2]
[353918943,1740143448706,-500.0,0.00013414,2]
[353918944,1740143448715,-420.7310211,0.00013414,2]
[353918945,1740143448730,-79.2689789,0.00013414,2]
[353918946,1740143448739,-500.0,0.00013414,2]
[353918947,1740143448749,-500.0,0.00013414,2]
[353918948,1740143448760,-507.0,0.00013414,2]
[353918949,1740143448775,-500.0,0.00013414,2]
[353918950,1740143448785,-500.0,0.00013414,2]
[353918951,1740143448795,-500.0,0.00013414,2]
[353918952,1740143448805,-500.0,0.00013414,2]
[353918953,1740143448815,-500.0,0.00013414,2]
[353918954,1740143448825,-500.0,0.00013414,2]
[353918955,1740143448836,-500.0,0.00013414,2]
[353918956,1740143448845,-500.0,0.00013414,2]
[353918957,1740143448855,-500.0,0.00013414,2]
[353918958,1740143448866,-500.0,0.00013414,2]
[353918959,1740143448875,-500.0,0.00013414,2]
[353918960,1740143448884,-500.0,0.00013414,2]
[353918961,1740143448894,-500.0,0.00013414,2]
[353918962,1740143448903,-500.0,0.00013414,2]
[353918963,1740143448912,-500.0,0.00013414,2]
[353918964,1740143448922,-500.0,0.00013414,2]
[353918965,1740143448931,-500.0,0.00013414,2]
[353918966,1740143448941,-500.0,0.00013414,2]
[353918967,1740143448950,-500.0,0.00013414,2]
[353918968,1740143448959,-500.0,0.00013414,2]
[353918969,1740143448969,-518.0,0.00013414,2]
[353918970,1740143448978,-500.0,0.00013414,2]
[353918971,1740143448988,-500.0,0.00013414,2]
[353918972,1740143448997,-500.0,0.00013414,2]
[353918973,1740143449006,-500.0,0.00013414,2]
[353918974,1740143449018,-500.0,0.00013414,2]
[353918975,1740143449028,-500.0,0.00013414,2]
[353918976,1740143449037,-500.0,0.00013414,2]
[353918977,1740143449048,-500.0,0.00013414,2]
[353918978,1740143449058,-500.0,0.00013414,2]
[353918979,1740143449068,-500.0,0.00013414,2]
[353918980,1740143449077,-500.0,0.00013414,2]
[353918981,1740143449087,-500.0,0.00013414,2]
[353918982,1740143449097,-500.0,0.00013414,2]
[353918983,1740143449106,-500.0,0.00013414,2]
[353918984,1740143449115,-500.0,0.00013414,2]
[353918985,1740143449125,-500.0,0.00013414,2]
[353918986,1740143449134,-500.0,0.00013414,2]
[353918987,1740143449143,-500.0,0.00013414,2]
[353918988,1740143449152,-500.0,0.00013414,2]
[353918989,1740143449163,-500.0,0.00013414,2]
[353918990,1740143449173,-500.0,0.00013414,2]
[353918991,1740143449182,-500.0,0.00013414,2]
[353918992,1740143449192,-500.0,0.00013414,2]
[353918993,1740143449202,-500.0,0.00013414,2]
[353918994,1740143449211,-500.0,0.00013414,2]
[353918995,1740143449221,-500.0,0.00013414,2]
[353918996,1740143449231,-500.0,0.00013414,2]
[353918997,1740143449240,-500.0,0.00013414,2]
[353918998,1740143449249,-500.0,0.00013414,2]
[353918999,1740143449258,-500.0,0.00013414,2]
[353919000,1740143449271,-500.0,0.00013414,2]
[353919001,1740143449280,-500.0,0.00013414,2]
[353919002,1740143449290,-500.0,0.00013414,2]
[353919003,1740143449300,-500.0,0.00013414,2]
[353919004,1740143449309,-500.0,0.00013414,2]
[353919005,1740143449319,-500.0,0.00013414,2]
[353919006,1740143449330,-500.0,0.00013414,2]
[353919007,1740143449339,-500.0,0.00013414,2]
[353919008,1740143449349,-500.0,0.00013414,2]
[353919009,1740143449359,-500.0,0.00013414,2]
[353919010,1740143449369,-500.0,0.00013414,2]
[353919011,1740143449379,-500.0,0.00013414,2]
[353919012,1740143449389,-500.0,0.00013414,2]
[353919013,1740143449399,-500.0,0.00013414,2]
[353919014,1740143449410,-500.0,0.00013414,2]
[353919015,1740143449420,-500.0,0.00013414,2]
[353919016,1740143449430,-500.0,0.00013414,2]
[353919017,1740143449440,-500.0,0.00013414,2]
[353919018,1740143449450,-500.0,0.00013414,2]
[353919019,1740143449459,-500.0,0.00013414,2]
[353919020,1740143449469,-500.0,0.00013414,2]
[353919021,1740143449479,-500.0,0.00013414,2]
[353919022,1740143449488,-500.0,0.00013414,2]
[353919023,1740143449498,-500.0,0.00013414,2]
[353919024,1740143449508,-500.0,0.00013414,2]
[353919025,1740143449525,-500.0,0.00013414,2]
[353919026,1740143449535,-500.0,0.00013414,2]
[353919027,1740143449545,-500.0,0.00013414,2]
[353919028,1740143449555,-500.0,0.00013414,2]
[353919029,1740143449566,-500.0,0.00013414,2]
[353919030,1740143449576,-500.0,0.00013414,2]
[353919031,1740143449585,-500.0,0.00013414,2]
[353919032,1740143449595,-500.0,0.00013414,2]
[353919033,1740143449604,-500.0,0.00013414,2]
[353919034,1740143449614,-500.0,0.00013414,2]
[353919035,1740143449624,-500.0,0.00013414,2]
[353919036,1740143449633,-500.0,0.00013414,2]
[353919037,1740143449643,-5366.0105812,0.00013414,2]
[353919038,1740143449652,-264.07713875,0.00013414,2]
[353919039,1740143449661,-1310.500231,0.00013414,2]
[353919040,1740143449670,-3151.84152425,0.00013421,2]
[353919041,1740143449680,-500.0,0.00013423,2]
[353919042,1740143449690,-300.0,0.00013423,2]
[353919043,1740143449704,-151.0,0.00013424,2]
[353919044,1740143449714,-151.0,0.00013424,2]
[353919045,1740143449724,-151.0,0.00013424,2]
[353919046,1740143449733,-151.0,0.00013424,2]
[353919047,1740143449743,-161.227678,0.00013424,2]
[353919048,1740143449752,-157.941251,0.00013424,2]
[353919049,1740143449761,-159.129981,0.00013424,2]
[353919050,1740143449774,-327.528608,0.00013424,2]
[353919051,1740143449784,-500.41991288,0.00013424,2]
[353919052,1740143449793,-156.822493,0.00013424,2]
[353919053,1740143449803,-163.308727,0.00013424,2]
[353919054,1740143449812,-500.0,0.00013424,2]
[353919055,1740143449821,-278.76782119,0.00013424,2]
[353919056,1740143966450,1949.85169461,0.0002,120]
[353919057,1740143977789,153.16002231,0.0002,120]
[353919059,1740144068557,397.93,8.767e-05,2]
[353919086,1740144631524,-150.0,9.975e-05,2]
[353919087,1740144631533,-150.0,9.999e-05,2]
[353919088,1740144631542,-500.0,9.999e-05,2]
[353919089,1740144631552,-550.0,0.0001,2]
[353919090,1740144631561,-2833.5135596,0.0001,2]
[353919091,1740144631572,-7052.18459388,0.0001,2]
[353919092,1740144631584,-262.43829488,0.0001,2]
[353919093,1740144631595,-1722.96518487,0.0001,2]
[353919094,1740144631607,-92873.55697119,0.0001,2]
[353919095,1740144631654,-500.56005864,0.0001,2]
[353919096,1740144631713,-2201.57792837,0.0001,2]
[353919097,1740144631726,-48408.51810985,0.0001,2]
[353919098,1740144631781,-2776.99449996,0.0001,2]
[353919250,1740144637460,-83393.76916963,0.0001,2]
[353919251,1740144637517,-198882.86375649,0.0001,2]
[353919252,1740144637528,-1099.08589008,0.0001,2]
[353919253,1740144637631,-1023.85804335,0.0001,2]
[353919254,1740144637643,-865.68892614,0.0001,2]
[353919255,1740144637654,-7253.82270094,0.0001,2]
[353919256,1740144637666,-1369.714304,0.0001,2]
[353919257,1740144637690,-357.24622518,0.0001,2]
[353919258,1740144637701,-3194.37103983,0.0001,2]
[353919429,1740144639595,-262.069653,9.924e-05,2]
[353919430,1740144639604,-938.60147408,0.0001,2]
[353919431,1740144639712,-800.6046,0.0001,2]
[353919440,1740144640231,-351.42999999,0.0001,2]
[353919561,1740144642588,-1205.50888672,0.0001,2]
[353919562,1740144642650,-58683.4,0.0001,2]
[353919563,1740144642662,-52335.41843562,0.0001,2]
[353919564,1740144642671,-302.45791344,0.0001,2]
[353919565,1740144642681,-190.32841034,0.0001,2]
[353919566,1740144642691,-590.4,0.00010472,2]
[353919567,1740144642700,-205.05140187,0.000109,2]
[353919568,1740144642710,-150.0,0.00010917,2]
[353919569,1740144642721,-150.0,0.00010945,2]
[353919570,1740144642730,-500.0,0.00010945,2]
[353919571,1740144642740,-500.0,0.00011,2]
[353919572,1740144642750,-500.0,0.00011064,2]
[353919573,1740144642759,-500.0,0.00011064,2]
[353919574,1740144642769,-2976.88820245,0.00011099,2]
[353919575,1740144642780,-2976.88820239,0.00011099,2]
[353919576,1740144642790,-2976.88820239,0.00011099,2]
[353919577,1740144642799,-155.88774723,0.00011099,2]
[353919578,1740144642810,-2976.88820239,0.00011315,2]
[353919579,1740144642820,-152.83,0.00011564,2]
[353919580,1740144642830,-506.87,0.00011598,2]
[353919581,1740144642839,-2976.88820239,0.00011696,2]
[353919582,1740144642849,-250.0,0.00011761,2]
[353919583,1740144642858,-865.65328513,0.00011788,2]
[353919584,1740144642868,-600.0,0.00012,2]
[353919585,1740144642877,-176.37,0.00012045,2]
[353919586,1740144642887,-4243.47,0.00012055,2]
[353919587,1740144642895,-2976.88820239,0.00012076,2]
[353919588,1740144642905,-196.35,0.00012137,2]
[353919589,1740144642915,-381.36,0.00012137,2]
[353919590,1740144642924,-150.0,0.00012316,2]
[353919591,1740144642934,-311.91,0.00012378,2]
[353919592,1740144642944,-2976.88820239,0.00012457,2]
[353919593,1740144642954,-173.61,0.00012511,2]
[353919594,1740144642966,-865.65328512,0.00012613,2]
[353919595,1740144642975,-1787.0,0.00012713,2]
[353919596,1740144642984,-1266.0,0.00012713,2]
[353919599,1740144642994,-784.0,0.00012713,2]
[353919600,1740144643003,-908.0,0.00012713,2]
[353919601,1740144643013,-1424.0,0.00012713,2]
[353919603,1740144643022,-539.0,0.00012713,2]
[353919606,1740144643032,-4030.0,0.00012713,2]
[353919608,1740144643041,-574.823,0.00012713,2]
[353919610,1740144643050,-3918.0,0.00012713,2]
[353919612,1740144643059,-301.0,0.00012713,2]
[353919614,1740144643068,-150.0,0.00012713,2]
[353919616,1740144643078,-590.4,0.00012736,2]
[353919618,1740144643088,-300.0,0.000128,4]
[353919620,1740144643097,-2976.88820239,0.00012838,2]
[353919622,1740144643106,-600.0,0.000129,4]
[353919624,1740144643115,-300.55444405,0.00013,2]
[353919626,1740144643125,-2976.88820239,0.00013219,2]
[353919628,1740144643134,-942.48249545,0.00013272,2]
[353919629,1740144643143,-432.31286095,0.00013281,2]